bitfinex/quotes_BTCUSD_20250607
["timestamp","ask_amount","ask_price","bid_price","bid_amount"]
[1749330946640,0.01874653,105930.0,105920.0,0.55256851]
[1749330947071,0.01874522,105930.0,105920.0,0.59020807]
[1749330947281,0.01874521,105930.0,105920.0,0.59020807]
[1749330947493,0.01874523,105930.0,105920.0,0.55256851]
[1749330947712,0.00104,105930.0,105920.0,0.55256851]
[1749330947913,0.01874518,105930.0,105920.0,0.55256851]
[1749330948710,0.00104,105930.0,105920.0,0.55256851]
[1749330948901,0.01874387,105930.0,105920.0,0.55256851]
[1749330949121,0.01874189,105930.0,105920.0,0.55256851]
[1749330949331,0.00104,105930.0,105920.0,0.55256851]
[1749330949555,0.01874184,105930.0,105920.0,0.55256851]
[1749330950600,0.00104,105930.0,105920.0,0.55256851]
[1749330950807,0.01874192,105930.0,105920.0,0.55256851]
[1749330951688,0.01874115,105930.0,105920.0,0.55256851]
[1749330952326,0.00104,105930.0,105920.0,0.55256851]
[1749330952555,0.01874116,105930.0,105920.0,0.55256851]
[1749330953662,0.01874068,105930.0,105920.0,0.55256851]
[1749330954339,0.00104,105930.0,105920.0,0.55256851]
[1749330954549,0.01874067,105930.0,105920.0,0.55256851]
[1749330954745,0.01874032,105930.0,105920.0,0.55256851]
[1749330955183,0.00104,105930.0,105920.0,0.55256851]
[1749330955384,0.01874032,105930.0,105920.0,0.55256851]
[1749330956764,0.00104,105930.0,105920.0,0.55256851]
[1749330956983,0.01873627,105930.0,105920.0,1.90341732]
[1749330957191,0.01873692,105930.0,105920.0,1.30228286]
[1749330958300,0.01873692,105930.0,105920.0,1.30227572]
[1749330958511,0.01873761,105930.0,105920.0,1.30227572]
[1749330958953,0.00104,105930.0,105920.0,1.30227572]
[1749330959160,0.01873761,105930.0,105920.0,1.30227572]
[1749330960063,0.01873326,105930.0,105920.0,1.30227572]
[1749330960273,0.00104,105930.0,105920.0,1.30227572]
[1749330960484,0.01873315,105930.0,105920.0,1.30227572]
[1749330960916,0.05716168,105930.0,105920.0,0.70114126]
[1749330961127,0.01873315,105930.0,105920.0,0.6635017]
[1749330961339,0.02817263,105930.0,105920.0,0.6484017]
[1749330961553,0.02817272,105930.0,105920.0,0.53746137]
[1749330961782,0.01047957,105930.0,105920.0,0.53746137]
[1749330961990,0.02817166,105930.0,105920.0,0.53746137]
[1749330962194,0.01047948,105930.0,105920.0,0.53746137]
[1749330962406,0.02817152,105930.0,105920.0,0.53746137]
[1749330963200,0.01047948,105930.0,105920.0,0.53746137]
[1749330963416,0.02817189,105930.0,105920.0,0.53746137]
[1749330963617,0.03761146,105930.0,105920.0,0.53746137]
[1749330963926,0.02817189,105930.0,105920.0,0.53746137]
[1749330964134,0.01047948,105930.0,105920.0,0.53746137]
[1749330964350,0.03761146,105930.0,105920.0,0.53746137]
[1749330964973,0.01991905,105930.0,105920.0,0.53746137]
[1749330965618,0.0293588,105930.0,105920.0,0.53746137]
[1749330965829,0.04705125,105930.0,105920.0,0.53746137]
[1749330966644,0.04705125,105930.0,105920.0,0.78234137]
[1749330966889,0.04705155,105930.0,105920.0,0.78234137]
[1749330967102,0.04705158,105930.0,105920.0,0.78234137]
[1749330967307,0.0293588,105930.0,105920.0,0.78234137]
[1749330967512,0.04705158,105930.0,105920.0,0.78234137]
[1749330967949,0.0376122,105930.0,105920.0,0.78234137]
[1749330968161,0.04705194,105930.0,105920.0,0.78234137]
[1749330968395,0.0293588,105930.0,105920.0,0.78234137]
[1749330968599,0.04705194,105930.0,105920.0,0.78234137]
[1749330968832,0.04705182,105930.0,105920.0,0.78234137]
[1749330969485,0.03761207,105930.0,105920.0,0.78234137]
[1749330970351,0.01991905,105930.0,105920.0,0.78234137]
[1749330970562,0.03761237,105930.0,105920.0,0.78234137]
[1749330971218,0.0376123,105930.0,105920.0,0.78234137]
[1749330971464,0.0376123,105930.0,105920.0,0.53746137]
[1749330973042,0.0376126,105930.0,105920.0,0.53746137]
[1749330973237,0.01991905,105930.0,105920.0,0.53746137]
[1749330973648,0.03761258,105930.0,105920.0,0.53746137]
[1749330974897,0.01991905,105930.0,105920.0,0.53746137]
[1749330975484,0.01991905,105930.0,105920.0,1.13859583]
[1749330975855,0.03761286,105930.0,105920.0,1.13859583]
[1749330976368,0.03761286,105930.0,105920.0,1.38347583]
[1749330976574,0.01991905,105930.0,105920.0,1.38347583]
[1749330976779,0.03761311,105930.0,105920.0,1.38347583]
[1749330976992,0.01991905,105930.0,105920.0,1.38347583]
[1749330977207,0.03761265,105930.0,105920.0,1.38347583]
[1749330977418,0.01991905,105930.0,105920.0,1.38347583]
[1749330977622,0.03761264,105930.0,105920.0,1.38347583]
[1749330978005,0.03761264,105930.0,105920.0,1.39887583]
[1749330978350,0.01873359,105930.0,105920.0,1.39887583]
[1749330978554,0.02817317,105930.0,105920.0,1.39887583]
[1749330979027,0.02817308,105930.0,105920.0,1.39887583]
[1749330979236,0.02817268,105930.0,105920.0,1.39887583]
[1749330980380,0.02817333,105930.0,105920.0,1.39887583]
[1749330980583,0.01047948,105930.0,105920.0,1.39887583]
[1749330980704,0.02817333,105930.0,105920.0,1.39887583]
[1749330980910,0.01047948,105930.0,105920.0,1.39887583]
[1749330981540,0.02817296,105930.0,105920.0,1.39887583]
[1749330982342,0.02817297,105930.0,105920.0,1.39887583]
[1749330982747,0.01047948,105930.0,105920.0,1.39887583]
[1749330983372,0.02817313,105930.0,105920.0,1.39887583]
[1749330983773,0.02817316,105930.0,105920.0,1.39887583]
[1749330984412,0.02817318,105930.0,105920.0,1.39887583]
[1749330984629,0.01047948,105930.0,105920.0,1.39887583]
[1749330984897,0.02817318,105930.0,105920.0,1.39887583]
[1749330985832,0.01047948,105930.0,105920.0,1.39887583]
[1749330986085,0.0281732,105930.0,105920.0,1.39887583]
[1749330986256,0.02817321,105930.0,105920.0,1.39887583]
[1749330986465,0.01047948,105930.0,105920.0,1.39887583]
[1749330986862,0.02817284,105930.0,105920.0,1.39887583]
[1749330987066,0.02817285,105930.0,105920.0,1.39887583]
[1749330987554,0.01047948,105930.0,105920.0,1.39887583]
[1749330987740,0.02817284,105930.0,105920.0,1.39887583]
[1749330987946,0.01047948,105930.0,105920.0,1.39887583]
[1749330988189,0.02817285,105930.0,105920.0,1.39887583]
[1749330988600,0.02817286,105930.0,105920.0,0.79774137]
[1749330988799,0.02817286,105930.0,105920.0,1.39887583]
[1749330988800,0.02817287,105930.0,105920.0,1.39887583]
[1749330989035,0.01047948,105930.0,105920.0,1.39887583]
[1749330989225,0.02817343,105930.0,105920.0,1.39887583]
[1749330989427,0.02817342,105930.0,105920.0,1.39887583]
[1749330989857,0.02818148,105930.0,105920.0,1.39887583]
[1749330990570,0.01047948,105930.0,105920.0,1.39887583]
[1749330991277,0.02818148,105930.0,105920.0,1.39887583]
[1749330991920,0.02818147,105930.0,105920.0,1.39887583]
[1749330992510,0.01047948,105930.0,105920.0,1.39887583]
[1749330992917,0.01047948,105930.0,105920.0,1.38347583]
[1749330993123,0.02818138,105930.0,105920.0,1.38347583]
[1749330993961,0.02818137,105930.0,105920.0,1.38347583]
[1749330994166,0.02818138,105930.0,105920.0,1.38347583]
[1749330995002,0.02818138,105930.0,105920.0,1.42111539]
[1749330995207,0.02818138,105930.0,105920.0,1.38347583]
[1749330995413,0.02818127,105930.0,105920.0,1.38347583]
[1749330995817,0.01047948,105930.0,105920.0,1.38347583]
[1749330996236,0.02818116,105930.0,105920.0,0.78234137]
[1749330996446,0.02818112,105930.0,105920.0,0.78234137]
[1749330997444,0.03762064,105930.0,105920.0,0.78234137]
[1749330997648,0.01991905,105930.0,105920.0,0.78234137]
[1749330998066,0.03762058,105930.0,105920.0,0.78234137]
[1749330998477,0.03762058,105930.0,105920.0,1.38347583]
[1749330998683,0.02818101,105930.0,105920.0,1.38347583]
[1749330998827,0.00104,105930.0,105920.0,1.38347583]
[1749330999025,0.02817819,105930.0,105920.0,1.38347583]
[1749330999227,0.01047948,105930.0,105920.0,1.38347583]
[1749330999642,0.02817744,105930.0,105920.0,1.38347583]
[1749331000072,0.02817744,105930.0,105920.0,1.13859583]
[1749331000479,0.01047948,105930.0,105920.0,1.13859583]
[1749331000683,0.02817722,105930.0,105920.0,1.13859583]
[1749331001215,0.01047948,105930.0,105920.0,1.12359583]
[1749331001441,0.02817721,105930.0,105920.0,1.12359583]
[1749331002360,0.01047948,105930.0,105920.0,1.12359583]
[1749331003000,0.02817742,105930.0,105920.0,0.52246137]
[1749331004145,0.02817761,105930.0,105920.0,0.52246137]
[1749331004628,0.02817846,105930.0,105920.0,0.52246137]
[1749331004876,0.02817838,105930.0,105920.0,0.53756137]
[1749331005091,0.01047948,105930.0,105920.0,0.78244137]
[1749331005298,0.02817826,105930.0,105920.0,0.78244137]
[1749331005705,0.02817839,105930.0,105920.0,0.78244137]
[1749331005930,0.01047948,105930.0,105920.0,0.78244137]
[1749331006135,0.02817917,105930.0,105920.0,0.78244137]
[1749331006309,0.02817975,105930.0,105920.0,0.78244137]
[1749331006546,0.00104,105930.0,105920.0,0.78244137]
[1749331006752,0.01047948,105930.0,105920.0,0.78244137]
[1749331006959,0.02817975,105930.0,105920.0,1.38357583]
[1749331007160,0.02817976,105930.0,105920.0,1.38357583]
[1749331007519,0.02817999,105930.0,105920.0,1.38357583]
[1749331007943,0.01874106,105930.0,105920.0,1.38357583]
[1749331008129,0.01874106,105930.0,105920.0,1.39987583]
[1749331008428,0.00104,105930.0,105920.0,1.39987583]
[1749331008580,0.01874107,105930.0,105920.0,1.37155358]
[1749331009845,0.0187426,105930.0,105920.0,1.37155358]
[1749331010045,0.01874261,105930.0,105920.0,1.39989143]
[1749331010262,0.00104,105930.0,105920.0,1.39989143]
[1749331010454,0.0187426,105930.0,105920.0,1.39989143]
[1749331011116,0.0187425,105930.0,105920.0,1.39989143]
[1749331011498,0.00104,105930.0,105920.0,1.39989143]
[1749331011699,0.0187425,105930.0,105920.0,1.39989143]
[1749331012102,0.01874251,105930.0,105920.0,1.39989143]
[1749331012483,0.01874249,105930.0,105920.0,1.39989143]
[1749331013299,0.00104,105930.0,105920.0,1.39989143]
[1749331013656,0.01874247,105930.0,105920.0,1.39989143]
[1749331014803,0.01874127,105930.0,105920.0,1.39989143]
[1749331015003,0.0187411,105930.0,105920.0,1.37155358]
[1749331015211,0.01874109,105930.0,105920.0,1.37155358]
[1749331015408,0.01874107,105930.0,105920.0,1.37155358]
[1749331015609,0.01874148,105930.0,105920.0,1.37155358]
[1749331016410,0.00104,105930.0,105920.0,1.37155358]
[1749331016653,0.01874046,105930.0,105920.0,1.37155358]
[1749331016805,0.00104,105930.0,105920.0,1.37155358]
[1749331017415,0.01874061,105930.0,105920.0,1.37155358]
[1749331017601,0.01874276,105930.0,105920.0,1.37155358]
[1749331018216,0.01874289,105930.0,105920.0,1.37155358]
[1749331018465,0.00104,105930.0,105920.0,1.37155358]
[1749331018618,0.01874323,105930.0,105920.0,1.37155358]
[1749331019197,0.00104,105930.0,105920.0,1.37155358]
[1749331019347,0.01874313,105930.0,105920.0,1.37155358]
[1749331020451,0.01874309,105930.0,105920.0,1.37155358]
[1749331020839,0.01874307,105930.0,105920.0,1.37155358]
[1749331021986,0.018743,105930.0,105920.0,1.37155358]
[1749331024085,0.01874209,105930.0,105920.0,1.37155358]
[1749331024291,0.01874207,105930.0,105920.0,1.37155358]
[1749331024748,0.01874206,105930.0,105920.0,1.37155358]
[1749331025569,0.00104,105930.0,105920.0,1.37155358]
[1749331025770,0.01874096,105930.0,105920.0,1.37155358]
[1749331027723,0.01874119,105930.0,105920.0,1.37155358]
[1749331029975,0.01874114,105930.0,105920.0,1.37155358]
[1749331030530,0.00104,105930.0,105920.0,1.37155358]
[1749331030730,0.01874116,105930.0,105920.0,1.35525358]
[1749331031498,0.01874115,105930.0,105920.0,1.35525358]
[1749331031708,0.00104,105930.0,105920.0,1.35525358]
[1749331031920,0.01874115,105930.0,105920.0,1.35525358]
[1749331032735,0.00104,105930.0,105920.0,1.35525358]
[1749331032936,0.01874126,105930.0,105920.0,1.35525358]
[1749331033147,0.01874127,105930.0,105920.0,1.35525358]
[1749331034044,0.01874104,105930.0,105920.0,1.35525358]
[1749331034473,0.01874104,105930.0,105920.0,1.39289314]
[1749331034659,0.00104,105930.0,105920.0,1.39289314]
[1749331035455,0.01874129,105930.0,105920.0,1.35525358]
[1749331035847,0.0187404,105930.0,105920.0,1.35525358]
[1749331036456,0.01874039,105930.0,105920.0,1.35525358]
[1749331036665,0.01874121,105930.0,105920.0,1.38358869]
[1749331037016,0.01874132,105930.0,105920.0,1.38358869]
[1749331038122,0.01874098,105930.0,105920.0,1.38358869]
[1749331038885,0.01874099,105930.0,105920.0,1.38358869]
[1749331040666,0.01874074,105930.0,105920.0,1.38358869]
[1749331040890,0.01874071,105930.0,105920.0,1.38358869]
[1749331041540,0.01874056,105930.0,105920.0,1.38358869]
[1749331041989,0.00104,105930.0,105920.0,1.38358869]
[1749331042214,0.01874064,105930.0,105920.0,1.42122825]
[1749331043102,0.01874065,105930.0,105920.0,1.42122825]
[1749331043982,0.01874037,105930.0,105920.0,1.42122825]
[1749331044213,0.00104,105930.0,105920.0,1.42122825]
[1749331044437,0.01874035,105930.0,105920.0,1.42122825]
[1749331045113,0.01874035,105930.0,105920.0,1.38358869]
[1749331045339,0.01874019,105930.0,105920.0,1.38358869]
[1749331045788,0.01874034,105930.0,105920.0,1.42122825]
[1749331046001,0.01874041,105930.0,105920.0,1.38358869]
[1749331046249,0.01874041,105930.0,105920.0,1.36848869]
[1749331046679,0.01874192,105930.0,105920.0,1.36848869]
[1749331047410,0.01047939,105930.0,105920.0,1.36848869]
[1749331047630,0.01874191,105930.0,105920.0,1.36848869]
[1749331047850,0.00104,105930.0,105920.0,1.36848869]
[1749331048072,0.01874191,105930.0,105920.0,1.36848869]
[1749331048291,0.00104,105930.0,105920.0,1.36848869]
[1749331048518,0.01874179,105930.0,105920.0,1.36848869]
[1749331048930,0.00104,105930.0,105920.0,1.36848869]
[1749331049135,0.01874179,105930.0,105920.0,1.36848869]
[1749331049339,0.00104,105930.0,105920.0,1.36848869]
[1749331049757,0.01047939,105930.0,105920.0,1.36848869]
[1749331049964,0.02818113,105930.0,105920.0,1.36848869]
[1749331050775,0.02818113,105930.0,105920.0,1.38428869]
[1749331050987,0.02818119,105930.0,105920.0,1.38428869]
[1749331051185,0.02818119,105930.0,105920.0,1.42192825]
[1749331051395,0.0187418,105930.0,105920.0,1.42192825]
[1749331052651,0.00104,105930.0,105920.0,1.42192825]
[1749331052858,0.01874146,105930.0,105920.0,1.42192825]
[1749331053266,0.01874083,105930.0,105920.0,1.42192825]
[1749331053477,0.00104,105930.0,105920.0,1.42192825]
[1749331053684,0.01874046,105930.0,105920.0,1.42192825]
[1749331054298,0.01874086,105930.0,105920.0,1.42192825]
[1749331054705,0.00104,105930.0,105920.0,1.42192825]
[1749331054952,0.01874086,105930.0,105920.0,1.42192825]
[1749331055966,0.01874086,105930.0,105920.0,0.82079379]
[1749331056176,0.09437686,105930.0,105920.0,0.80499379]
[1749331056593,0.07667581,105930.0,105920.0,0.80499379]
[1749331056795,0.09437704,105930.0,105920.0,0.80499379]
[1749331057430,0.09437704,105930.0,105920.0,1.40612825]
[1749331057838,0.09437726,105930.0,105920.0,1.40612825]
[1749331058251,0.07667581,105930.0,105920.0,1.40612825]
[1749331058458,0.09437721,105930.0,105920.0,1.36848869]
[1749331058693,0.09437719,105930.0,105920.0,1.36848869]
[1749331059316,0.09437719,105930.0,105920.0,1.40612825]
[1749331059522,0.09437727,105930.0,105920.0,1.40612825]
[1749331060153,0.09437756,105930.0,105920.0,1.40612825]
[1749331060361,0.10381704,105930.0,105920.0,1.40612825]
[1749331060784,0.08611529,105930.0,105920.0,1.40612825]
[1749331060984,0.0281813,105930.0,105920.0,1.40612825]
[1749331061242,0.02818121,105930.0,105920.0,1.40612825]
[1749331062323,0.03762078,105930.0,105920.0,1.40612825]
[1749331062564,0.01047939,105930.0,105920.0,1.40612825]
[1749331062941,0.02818174,105930.0,105920.0,1.40612825]
[1749331063409,0.01874247,105930.0,105920.0,1.40612825]
[1749331063608,0.02818186,105930.0,105920.0,1.40612825]
[1749331064205,0.02818233,105930.0,105920.0,1.40612825]
[1749331065648,0.02818236,105930.0,105920.0,1.40612825]
[1749331066419,0.02818237,105930.0,105920.0,1.40612825]
[1749331067895,0.02818244,105930.0,105920.0,1.40612825]
[1749331068310,0.01991896,105930.0,105920.0,1.40612825]
[1749331068535,0.02818244,105930.0,105920.0,1.40612825]
[1749331068741,0.02818241,105930.0,105920.0,1.40612825]
[1749331069490,0.02818247,105930.0,105920.0,1.40612825]
[1749331069684,0.01047939,105930.0,105920.0,1.40612825]
[1749331070121,0.03762202,105930.0,105920.0,1.40612825]
[1749331071172,0.02818245,105930.0,105920.0,1.40612825]
[1749331071376,0.02818253,105930.0,105920.0,1.40612825]
[1749331072069,0.02818252,105930.0,105920.0,1.40612825]
[1749331072486,0.03762209,105930.0,105920.0,1.40612825]
[1749331073460,0.03762204,105930.0,105920.0,1.40612825]
[1749331073712,0.03762203,105930.0,105920.0,1.40612825]
[1749331074326,0.03762194,105930.0,105920.0,1.40612825]
[1749331075436,0.03762186,105930.0,105920.0,1.40612825]
[1749331075853,0.03762093,105930.0,105920.0,1.40612825]
[1749331076078,0.03762055,105930.0,105920.0,1.40612825]
[1749331077149,0.01991887,105930.0,105920.0,1.40612825]
[1749331077371,0.03762058,105930.0,105920.0,1.40612825]
[1749331077656,0.03762044,105930.0,105920.0,1.40612825]
[1749331078472,0.03762058,105930.0,105920.0,1.40612825]
[1749331079116,0.02935844,105930.0,105920.0,1.40612825]
[1749331079524,0.04706014,105930.0,105920.0,1.40612825]
[1749331079732,0.03762057,105930.0,105920.0,1.40612825]
[1749331081373,0.01991887,105930.0,105920.0,1.40612825]
[1749331081597,0.03762057,105930.0,105920.0,1.40612825]
[1749331081780,0.01991887,105930.0,105920.0,1.40612825]
[1749331081981,0.03761924,105930.0,105920.0,1.40612825]
[1749331082309,0.03761865,105930.0,105920.0,1.40612825]
[1749331082947,0.03761855,105930.0,105920.0,1.40612825]
[1749331084385,0.02817809,105930.0,105920.0,1.40612825]
[1749331084586,0.01047939,105930.0,105920.0,1.40612825]
[1749331084793,0.02817809,105930.0,105920.0,1.40612825]
[1749331084997,0.02817807,105930.0,105920.0,1.40612825]
[1749331085202,0.02817809,105930.0,105920.0,1.40612825]
[1749331085450,0.02817813,105930.0,105920.0,1.40612825]
[1749331085858,0.02817822,105930.0,105920.0,1.40612825]
[1749331086815,0.02817824,105930.0,105920.0,1.40612825]
[1749331087172,0.01047948,105930.0,105920.0,1.40612825]
[1749331087375,0.02817852,105930.0,105920.0,0.80499379]
[1749331088164,0.02817853,105930.0,105920.0,0.80499379]
[1749331088567,0.01047948,105930.0,105920.0,0.80499379]
[1749331088726,0.02817812,105930.0,105920.0,0.80499379]
[1749331088928,0.01047948,105930.0,105920.0,0.80499379]
[1749331089332,0.02817804,105930.0,105920.0,0.80499379]
[1749331089913,0.02817805,105930.0,105920.0,0.80499379]
[1749331090345,0.02817789,105930.0,105920.0,0.80499379]
[1749331090752,0.01047948,105930.0,105920.0,0.80499379]
[1749331090948,0.02817777,105930.0,105920.0,0.80499379]
[1749331092183,0.02817705,105930.0,105920.0,0.80499379]
[1749331092390,0.02817703,105930.0,105920.0,0.80499379]
[1749331092622,0.02817701,105930.0,105920.0,0.80499379]
[1749331092744,0.02817698,105930.0,105920.0,0.80499379]
[1749331093391,0.02817689,105930.0,105920.0,0.80499379]
[1749331093834,0.02817724,105930.0,105920.0,0.80499379]
[1749331093965,0.02817751,105930.0,105920.0,0.80499379]
[1749331094177,0.02817753,105930.0,105920.0,0.80499379]
[1749331094834,0.02817748,105930.0,105920.0,0.80499379]
[1749331096067,0.02817625,105930.0,105920.0,0.80499379]
[1749331096226,0.02817624,105930.0,105920.0,0.80499379]
[1749331097056,0.02817632,105930.0,105920.0,0.80499379]
[1749331097640,0.01047939,105930.0,105920.0,0.80499379]
[1749331097848,0.02817632,105930.0,105920.0,0.80499379]
[1749331098304,0.01873693,105930.0,105920.0,0.80499379]
[1749331099111,0.00104,105930.0,105920.0,0.80499379]
[1749331099265,0.0187369,105930.0,105920.0,0.80499379]
[1749331100102,0.0187369,105930.0,105920.0,0.82149379]
[1749331101178,0.0187369,105930.0,105920.0,1.42262825]
[1749331101345,0.00104,105930.0,105920.0,1.42262825]
[1749331101552,0.0187369,105930.0,105920.0,1.42262825]
[1749331101761,0.02817638,105930.0,105920.0,1.42262825]
[1749331102160,0.0187369,105930.0,105920.0,1.42262825]
[1749331102927,0.01873686,105930.0,105920.0,1.17774825]
[1749331103970,0.01873681,105930.0,105920.0,1.17774825]
[1749331104392,0.01873681,105930.0,105920.0,0.57661379]
[1749331104789,0.01873685,105930.0,105920.0,0.57661379]
[1749331105015,0.00104,105930.0,105920.0,0.57661379]
[1749331105220,0.01873671,105930.0,105920.0,0.57661379]
[1749331105825,0.01873649,105930.0,105920.0,0.57661379]
[1749331105974,0.01047939,105930.0,105920.0,0.57661379]
[1749331106179,0.02817594,105930.0,105920.0,0.57661379]
[1749331106585,0.02817603,105930.0,105920.0,0.57661379]
[1749331106784,0.01047939,105930.0,105920.0,0.57661379]
[1749331107082,0.02817593,105930.0,105920.0,0.57661379]
[1749331107285,0.01047939,105930.0,105920.0,0.57661379]
[1749331107496,0.02817592,105930.0,105920.0,0.57661379]
[1749331107691,0.03761549,105930.0,105920.0,0.57661379]
[1749331108122,0.02817592,105930.0,105920.0,0.57661379]
[1749331108525,0.02817591,105930.0,105920.0,0.57661379]
[1749331108711,0.02817609,105930.0,105920.0,0.57661379]
[1749331108912,0.028176,105930.0,105920.0,0.57661379]
[1749331110081,0.02817592,105930.0,105920.0,0.57661379]
[1749331110260,0.01047948,105930.0,105920.0,0.57661379]
[1749331110710,0.02817581,105930.0,105920.0,0.57661379]
[1749331111533,0.01047948,105930.0,105920.0,0.57661379]
[1749331111934,0.02817584,105930.0,105920.0,0.57661379]
[1749331112136,0.01047948,105930.0,105920.0,0.57661379]
[1749331112365,0.02817586,105930.0,105920.0,0.57661379]
[1749331112569,0.02817585,105930.0,105920.0,0.57661379]
[1749331113803,0.01047948,105930.0,105920.0,0.57661379]
[1749331114023,0.02817594,105930.0,105920.0,0.57661379]
[1749331114217,0.02817593,105930.0,105920.0,0.57661379]
[1749331114338,0.01047948,105930.0,105920.0,0.57661379]
[1749331114539,0.02817594,105930.0,105920.0,0.57661379]
[1749331115981,0.02817601,105930.0,105920.0,0.57661379]
[1749331116175,0.02817604,105930.0,105920.0,0.57661379]
[1749331116377,0.02817613,105930.0,105920.0,0.57661379]
[1749331117526,0.02817616,105930.0,105920.0,0.56011379]
[1749331117746,0.01047948,105930.0,105920.0,0.56011379]
[1749331117950,0.02817615,105930.0,105920.0,0.56011379]
[1749331118162,0.01047948,105930.0,105920.0,0.56011379]
[1749331118360,0.02817613,105930.0,105920.0,0.56011379]
[1749331118599,0.0376157,105930.0,105920.0,0.56011379]
[1749331118763,0.03761572,105930.0,105920.0,0.56011379]
[1749331119900,0.03761567,105930.0,105920.0,0.56011379]
[1749331120483,0.01991905,105930.0,105920.0,0.56011379]
[1749331120693,0.03761563,105930.0,105920.0,0.56011379]
[1749331120894,0.03761565,105930.0,105920.0,0.56011379]
[1749331121115,0.01991905,105930.0,105920.0,0.56011379]
[1749331121337,0.03761565,105930.0,105920.0,0.56011379]
[1749331121544,0.0470554,105930.0,105920.0,0.56011379]
[1749331121961,0.04705536,105930.0,105920.0,0.56011379]
[1749331122194,0.01991905,105930.0,105920.0,0.56011379]
[1749331122398,0.0470554,105930.0,105920.0,0.56011379]
[1749331123244,0.0293588,105930.0,105920.0,0.56011379]
[1749331123450,0.03761611,105930.0,105920.0,0.56011379]
[1749331123858,0.04705577,105930.0,105920.0,0.56011379]
[1749331124062,0.04705574,105930.0,105920.0,0.56011379]
[1749331124283,0.04705574,105930.0,105920.0,0.18763379]
[1749331124493,0.0564961,105930.0,105920.0,0.52531459]
[1749331124696,0.0716961,105930.0,105920.0,0.52531459]
[1749331124899,0.0622556,105930.0,105920.0,0.52531459]
[1749331125103,0.04455906,105930.0,105920.0,0.52531459]
[1749331125322,0.0622556,105930.0,105920.0,0.52531459]
[1749331125529,0.0470556,105930.0,105920.0,0.52531459]
[1749331126554,0.04705554,105930.0,105920.0,0.52531459]
[1749331126994,0.05649555,105930.0,105920.0,0.52531459]
[1749331127194,0.03761571,105930.0,105920.0,0.52531459]
[1749331127413,0.05649547,105930.0,105920.0,0.52531459]
[1749331127621,0.06275546,105930.0,105920.0,0.52531459]
[1749331127848,0.07219538,105930.0,105920.0,0.52531459]
[1749331128459,0.05649068,105930.0,105920.0,0.52531459]
[1749331128666,0.05648913,105930.0,105920.0,0.52531459]
[1749331129105,0.04704921,105930.0,105920.0,0.52531459]
[1749331129718,0.05648904,105930.0,105920.0,0.52531459]
[1749331130125,0.05648866,105930.0,105920.0,0.52531459]
[1749331130331,0.05648856,105930.0,105920.0,0.52531459]
[1749331130508,0.03879881,105930.0,105920.0,0.52531459]
[1749331130761,0.05648849,105930.0,105920.0,0.52531459]
[1749331131148,0.04704866,105930.0,105920.0,0.52531459]
[1749331131372,0.0564877,105930.0,105920.0,0.52531459]
[1749331131599,0.05648761,105930.0,105920.0,0.52531459]
[1749331132039,0.07268762,105930.0,105920.0,0.52531459]
[1749331132242,0.07268738,105930.0,105920.0,0.52531459]
[1749331132452,0.05648738,105930.0,105920.0,0.52531459]
[1749331132610,0.05648686,105930.0,105920.0,0.52531459]
[1749331132809,0.03760728,105930.0,105920.0,0.52531459]
[1749331133014,0.04704711,105930.0,105920.0,0.52531459]
[1749331133821,0.04704707,105930.0,105920.0,0.52531459]
[1749331134452,0.04704673,105930.0,105920.0,0.52531459]
[1749331135107,0.04704662,105930.0,105920.0,0.52531459]
[1749331136116,0.04704643,105930.0,105920.0,0.52531459]
[1749331136756,0.07764634,105930.0,105920.0,0.12165948]
[1749331136965,0.26645079,105930.0,105920.0,0.51582549]
[1749331137169,0.27589098,105930.0,105920.0,0.48749919]
[1749331137530,0.27589003,105930.0,105920.0,0.48749919]
[1749331137979,0.27589003,105930.0,105920.0,0.49693974]
[1749331139231,0.27588997,105930.0,105920.0,0.49693974]
[1749331140264,0.27588958,105930.0,105920.0,0.5063802]
[1749331140642,0.2758894,105930.0,105920.0,0.5063802]
[1749331140833,0.27588941,105930.0,105920.0,0.5063802]
[1749331141037,0.27588942,105930.0,105920.0,0.5063802]
[1749331141232,0.2582037,105930.0,105920.0,0.5063802]
[1749331141436,0.27588944,105930.0,105920.0,0.5063802]
[1749331142069,0.06264524,105930.0,105920.0,0.5063802]
[1749331142277,0.06264498,105930.0,105920.0,0.5063802]
[1749331142479,0.06164497,105930.0,105920.0,0.5063802]
[1749331142689,0.0533996,105930.0,105920.0,0.5063802]
[1749331142892,0.07208507,105930.0,105920.0,0.5063802]
[1749331143782,0.06264497,105930.0,105920.0,0.5063802]
[1749331143983,0.06264261,105930.0,105920.0,0.5063802]
[1749331144187,0.0449595,105930.0,105920.0,0.5063802]
[1749331144403,0.06264214,105930.0,105920.0,0.5063802]
[1749331144554,0.0449595,105930.0,105920.0,0.5063802]
[1749331144758,0.06264159,105930.0,105920.0,0.5063802]
[1749331145208,0.062642,105930.0,105920.0,0.5063802]
[1749331145642,0.06264206,105930.0,105920.0,0.5063802]
[1749331146056,0.0449595,105930.0,105920.0,0.5063802]
[1749331146205,0.06264199,105930.0,105920.0,0.5063802]
[1749331147386,0.06264173,105930.0,105920.0,0.5063802]
[1749331147589,0.0449595,105930.0,105920.0,0.5063802]
[1749331147788,0.03551949,105930.0,105920.0,0.5063802]
[1749331147993,0.03760129,105930.0,105920.0,0.5063802]
[1749331148222,0.04704121,105930.0,105920.0,0.5347065]
[1749331148442,0.03760129,105930.0,105920.0,1.13584096]
[1749331148640,0.03760129,105930.0,105920.0,0.5347065]
[1749331149182,0.04704156,105930.0,105920.0,0.5347065]
[1749331149993,0.03760181,105930.0,105920.0,0.5347065]
[1749331150193,0.04704164,105930.0,105920.0,0.5347065]
[1749331150790,0.04704288,105930.0,105920.0,0.5347065]
[1749331152015,0.04704433,105930.0,105920.0,0.5347065]
[1749331152212,0.02935888,105930.0,105920.0,0.5347065]
[1749331152679,0.0281648,105930.0,105920.0,0.5347065]
[1749331152854,0.03760463,105930.0,105920.0,0.5347065]
[1749331153270,0.01991922,105930.0,105920.0,0.5347065]
[1749331153523,0.04704397,105930.0,105920.0,0.5347065]
[1749331153934,0.04704592,105930.0,105920.0,0.5347065]
[1749331154293,0.047046,105930.0,105920.0,0.5347065]
[1749331154747,0.04704592,105930.0,105920.0,0.5347065]
[1749331155409,0.04704575,105930.0,105920.0,0.5347065]
[1749331155863,0.04704575,105930.0,105920.0,0.5063802]
[1749331155864,0.02935871,105930.0,105920.0,0.5063802]
[1749331156093,0.04704576,105930.0,105920.0,0.5063802]
[1749331156980,0.03035871,105930.0,105920.0,0.5063802]
[1749331157215,0.04804551,105930.0,105920.0,0.5063802]
[1749331157401,0.05748527,105930.0,105920.0,0.5063802]
[1749331158289,0.04804552,105930.0,105920.0,0.5063802]
[1749331158509,0.04804527,105930.0,105920.0,0.5063802]
[1749331159586,0.03860561,105930.0,105920.0,0.5063802]
[1749331159817,0.04804536,105930.0,105920.0,0.5063802]
[1749331160029,0.04804537,105930.0,105920.0,0.5063802]
[1749331160244,0.02916605,105930.0,105920.0,0.5063802]
[1749331160467,0.03035862,105930.0,105920.0,0.5063802]
[1749331160676,0.03860639,105930.0,105920.0,0.5063802]
[1749331160887,0.04804631,105930.0,105920.0,0.5063802]